[Event "Gaprindashvili Cup Women I Stage 2020"]
[Site "Online"]
[Date "2020.11.04"]
[Round "5.2"]
[White "Abuladze, Natali"]
[Black "Tsotsonava, Elene"]
[Result "0-1"]
[ECO "D27"]
[WhiteElo "1049"]
[BlackElo "1805"]
[Annotator "NA RC"]
[PlyCount "116"]
[EventDate "2020.11.04"]
[EventType "swiss"]
[SourceTitle "playchess.com"]
[Source "ChessBase"]
[SourceQuality "1"]
[TimeControl "1500+5"]

{[%evp 15,93,14,24,11,32767,32767,32767,8,19,0,0,-7,-7,-23,0,-129,-125,-150,-142,-154,-155,-167,-188,-177,-199,-202,-147,-159,-136,-145,-147,-202,-217,-279,-278,-368,-263,-238,0,-324,-365,-372,-119,32767,0,-361,-275,-270,-285,-307,-287,-396,-405,-481,-58,-86,-79,-95,-92,-97,-72,-90,-88,-96,-93,-107,-95,-110,-82,-125,-121,-125,-125,-1143,32767,32767,32767,32767,-6354,-4133]} 1. d4 {[%emt 0:00:05]} d5 {[%emt 0:00:02]} 2. c4 {[%emt 0:00:04]} dxc4 {[%emt 0:00:02]} 3. Nf3 {[%emt 0:00:03]} Nf6 {[%emt 0:00:03]} 4. e3 {[%emt 0:00:09]} e6 {[%emt 0:00:05]} 5. Bxc4 {[%emt 0:00:07]} c5 {[%emt 0:00:04]} 6. Nc3 {[%emt 0:00:57]} a6 {[%emt 0:00:04]} 7. a4 {[%emt 0:00:10]} Nc6 {[%emt 0:00:06]} 8. O-O {[%emt 0:01:10]} Be7 {[%emt 0:00:09]} 9. dxc5 {[%emt 0:02:12]} Qxd1 {[%emt 0:00:39] 9...Bxc5 deserves study.} 10. Rxd1 {[%emt 0:00:05]} Bxc5 {[%emt 0:00:01]} 11. b3 {[%emt 0:00:20] D27: Queen's Gambit Accepted: Classical main line: 7 e4!? and 7 a4.} Na5 {[%emt 0:02:50]} 12. Nd2 {[%emt 0:04:14] [#]} Bd7 $146 {[%emt 0:00:38]} ({Predecessor:} 12... Nxc4 13. Nxc4 Ke7 14. Rb1 a5 15. Nb5 Bd7 16. Ne5 Bxb5 17. axb5 Rhd8 18. Bb2 Rac8 {1-0 (48) Repina,V (2292)-Fastova,T (2044) Dagomys 2009}) 13. Ba3 {[%emt 0:01:23]} Bxa3 {[%emt 0:01:19]} 14. Rxa3 {[%emt 0:00:36]} Rc8 {[%emt 0:00:41]} 15. Ra2 {[%emt 0:01:19]} (15. Na2 $11 {remains equal.}) 15... Nxb3 $1 {[%emt 0:01:51]} 16. Bxb3 {[%emt 0:03:27]} Rxc3 {[%emt 0:00:06]} 17. Raa1 {[%emt 0:00:33]} Ke7 {[%emt 0:00:13]} 18. Rac1 {[%emt 0:01:13]} Rhc8 {[%emt 0:00:08]} 19. Rxc3 {[%emt 0:00:57]} Rxc3 {[%emt 0:00:04]} 20. h3 {[%emt 0:00:03]} b5 {[%emt 0:00:27]} 21. axb5 {[%emt 0:00:10]} Bxb5 {[%emt 0:00:02]} 22. Rb1 {[%emt 0:00:34]} Bd3 {[%emt 0:01:25]} 23. Rb2 {[%emt 0:00:21]} Nd7 {[%emt 0:00:05]} 24. Ba4 {[%emt 0:02:15]} Nc5 {[%emt 0:00:25]} 25. Bc6 {[%emt 0:00:27]} Kd6 {[%emt 0:01:31]} 26. Be8 {[%emt 0:00:33]} Ke7 $2 {[%emt 0:00:36]} ({Black should play} 26... a5 $19 27. Ra2 Rc1+ 28. Kh2 Rc2 29. Rxc2 Bxc2 30. Nc4+ Ke7) 27. Bc6 {[%emt 0:00:22]} a5 {[%emt 0:00:23]} 28. Ra2 {[%emt 0:01:40]} Na6 {[%emt 0:04:27]} 29. Bb7 {[%emt 0:00:50]} Nc5 $2 {[%emt 0:04:09]} (29... Rc1+ $19 30. Kh2 Nc5) 30. Bc6 {[%emt 0:00:19]} Rc2 {[%emt 0:00:13]} 31. Rxa5 {[%emt 0:00:27]} Kd6 {[%emt 0:00:06]} ({And not} 31... Rxd2 32. Rxc5 Kd6 33. Rc3 $11) 32. Nf3 {[%emt 0:00:21]} Kxc6 {[%emt 0:00:41]} 33. Nd4+ {[%emt 0:00:03]} (33. Ne5+ $142 Kb6 {[#]} 34. Rxc5 $1 {[%mdl 576] Remove Defender} Kxc5 35. Nxd3+ Kd6 36. Ne1) 33... Kb6 {[%emt 0:00:08]} 34. Nxc2 {[%emt 0:00:09]} Bxc2 $2 {[%emt 0:00:05]} (34... Kxa5 $19 35. Nd4 Kb6) 35. Ra2 {[%emt 0:00:04]} Be4 {[%emt 0:00:14]} 36. Rb2+ {[%emt 0:00:02]} Kc7 {[%emt 0:00:04]} 37. Rb5 {[%emt 0:00:04]} Kc6 {[%emt 0:00:09]} 38. Rb2 {[%emt 0:00:03]} Bd5 {[%emt 0:00:36]} 39. Rc2 {[%emt 0:00:04]} Kd6 {[%emt 0:00:03]} 40. Kf1 {[%emt 0:00:03]} Be4 {[%emt 0:00:39]} 41. Rd2+ {[%emt 0:00:05]} Ke5 {[%emt 0:00:04]} 42. f4+ {[%emt 0:00:04]} Kf6 {[%emt 0:00:14]} 43. g4 {[%emt 0:00:02]} Bd3+ {[%emt 0:00:21]} 44. Kf2 $19 {[%emt 0:00:04]} (44. Kg2 $17) 44... Ne4+ {[%emt 0:00:03]} 45. Ke1 {[%emt 0:00:12]} Nxd2 {[%emt 0:00:01]} 46. Kxd2 {[%emt 0:00:02]} Bf1 {[%emt 0:00:02]} 47. h4 {[%emt 0:00:04]} h5 {[%emt 0:00:06]} 48. g5+ {[%emt 0:00:03]} Kf5 {[%emt 0:00:02]} 49. Ke1 {[%emt 0:00:05]} Bc4 {[%emt 0:00:07]} 50. Kf2 {[%emt 0:00:02]} Kg4 {[%emt 0:00:02]} 51. Kg2 {[%emt 0:00:03]} Kxh4 {[%emt 0:00:01]} 52. Kh2 {[%emt 0:00:03]} Kg4 {[%emt 0:00:02]} 53. Kg2 {[%emt 0:00:01]} h4 {[%emt 0:00:04]} 54. Kh2 {[%emt 0:00:02]} h3 {[%emt 0:00:02]} 55. Kg1 {[%emt 0:00:02]} Kg3 {[%emt 0:00:02]} 56. Kh1 {[%emt 0:00:03]} Bd5+ {[%emt 0:00:02]} 57. Kg1 {[%emt 0:00:05]} h2+ {[%emt 0:00:02]} 58. Kf1 {[%emt 0:00:03]} h1=Q+ {[%emt 0:00:03]} 0-1

[Event "Gaprindashvili Cup Women I Stage 2020"]
[Site "Online"]
[Date "2020.11.04"]
[Round "5.3"]
[White "Bedoshvili, Dea"]
[Black "Lagazauri, Tamar"]
[Result "1-0"]
[ECO "D05"]
[WhiteElo "1667"]
[BlackElo "1657"]
[Annotator "NA RC"]
[PlyCount "53"]
[EventDate "2020.11.04"]
[EventType "swiss"]
[SourceTitle "playchess.com"]
[Source "ChessBase"]
[SourceQuality "1"]
[TimeControl "1500+5"]

1. d4 {[%emt 0:00:02]} d5 {[%emt 0:00:04]} 2. Nf3 {[%emt 0:00:03]} Nf6 {[%emt 0:00:03]} 3. Nbd2 {[%emt 0:00:08]} e6 {[%emt 0:00:35]} 4. e3 {[%emt 0:00:20]} b6 {[%emt 0:00:27]} 5. Bd3 {[%emt 0:00:17]} Bb7 {[%emt 0:00:13]} 6. O-O {[%emt 0:00:05]} Bd6 {[%emt 0:01:04]} 7. Qe2 {[%emt 0:01:02]} Ne4 {[%emt 0:01:37]} 8. Ne5 {[%emt 0:01:25]} Bxe5 {[%emt 0:04:25]} 9. dxe5 {[%emt 0:00:24]} O-O {[%emt 0:00:46]} 10. c3 {[%emt 0:05:04]} Nd7 {[%emt 0:06:00]} 11. f4 {[%emt 0:00:24]} Ndc5 {[%emt 0:00:26]} 12. Bc2 {[%emt 0:01:45]} Ba6 {[%emt 0:00:35]} 13. c4 {[%emt 0:00:30]} Nxd2 {[%emt 0:00:16]} 14. Qxd2 {[%emt 0:00:02]} dxc4 {[%emt 0:01:17]} 15. Qc3 {[%emt 0:01:39]} Nd3 {[%emt 0:01:54]} 16. Rf3 {[%emt 0:00:30]} f6 {[%emt 0:02:11]} 17. exf6 {[%emt 0:01:26]} Qxf6 {[%emt 0:00:10]} 18. Qa3 {[%emt 0:00:25]} Bb7 {[%emt 0:02:19]} 19. Rg3 {[%emt 0:00:14]} Rfd8 {[%emt 0:01:18]} 20. Rb1 {[%emt 0:01:16]} Ne1 {[%emt 0:00:40]} 21. Ba4 {[%emt 0:01:07]} Rd3 {[%emt 0:00:06]} 22. Qb4 {[%emt 0:00:53]} c3 {[%emt 0:00:16]} 23. bxc3 {[%emt 0:00:22]} c5 {[%emt 0:00:05]} 24. Qb2 {[%emt 0:00:19]} Rxc3 {[%emt 0:00:07]} 25. Bd2 {[%emt 0:00:07]} Rd3 {[%emt 0:00:05]} 26. Qxf6 {[%emt 0:00:03]} Nf3+ {[%emt 0:00:05]} 27. gxf3 {[%emt 0:00:05]} 1-0

[Event "Gaprindashvili Cup Women I Stage 2020"]
[Site "Online"]
[Date "2020.11.04"]
[Round "5.4"]
[White "Asatiani, Tamar"]
[Black "Kirtadze, Anastasia"]
[Result "0-1"]
[ECO "B57"]
[WhiteElo "1004"]
[BlackElo "1810"]
[Annotator "NA RC"]
[PlyCount "166"]
[EventDate "2020.11.04"]
[EventType "swiss"]
[SourceTitle "playchess.com"]
[Source "ChessBase"]
[SourceQuality "1"]
[TimeControl "1500+5"]

{[%evp 11,144,8,66,54,45,43,72,25,27,0,0,-7,-2,32767,32767,-19,0,-15,32767,-2,0,0,0,-51,-33,-46,-49,-106,-100,-149,-147,-176,-154,-189,-187,-183,-100,-202,-135,-281,-210,-217,-211,-290,0,-282,-204,-277,-147,-138,-157,-165,-173,-185,32767,32767,32767,32767,32767,32767,32767,32767,32767,32767,32767,32767,-197,-182,-196,-441,-320,-274,-127,-135,32767,32767,32767,32767,-70,-70,-62,-64,-56,-232,-276,32767,32767,32767,32767,-243,-228,-237,0,32767,32767,32767,32767,32767,32767,32767,32767,-218,-198,32767,-231,-12841,32767,-12850,-4134,-27999,-27999,-29973,-27999,32767,32767,-641,-1212,-27999,32767,-1685,32767,32767,-27999,-29974,32767,-29988,-29989,-27999,-29990,-29990,-29991,-27999,32767,-27999,-27999]} 1. e4 {[%emt 0:00:03]} c5 {[%emt 0:00:08]} 2. Nf3 {[%emt 0:00:02]} d6 {[%emt 0:01:12]} 3. d4 {[%emt 0:00:04]} cxd4 {[%emt 0:00:03]} 4. Nxd4 {[%emt 0:00:04]} Nf6 {[%emt 0:00:03]} 5. Nc3 {[%emt 0:00:04]} Nc6 {[%emt 0:00:04]} 6. Bc4 {[%emt 0:00:35]} Na5 {[%emt 0:00:16]} 7. Bb5+ {[%emt 0:00:22] B57: Classical Sicilian: Sozin with 6...Qb6.} Bd7 {[%emt 0:00:05]} 8. Bxd7+ {[%emt 0:00:07]} Qxd7 {[%emt 0:00:07]} 9. O-O {[%emt 0:00:07] [#]} g6 $146 {[%emt 0:00:03]} ({Predecessor:} 9... e6 10. Qd3 Be7 11. b3 O-O 12. Nce2 d5 13. exd5 Nxd5 14. c4 Nb4 15. Qc3 Nac6 16. Nxc6 Nxc6 {½-½ (64) Ciganikova,A (2115)-Grabics,M (2315) Nadole 1995}) 10. Be3 {[%emt 0:00:56]} Nc4 {[%emt 0:00:18]} 11. Qc1 {[%emt 0:00:57]} Nxe3 {[%emt 0:00:20]} 12. Qxe3 {[%emt 0:00:07]} Bg7 {[%emt 0:00:04]} 13. Rad1 {[%emt 0:01:06]} O-O {[%emt 0:00:23]} 14. h3 {[%emt 0:01:56]} Qc7 {[%emt 0:00:19]} 15. Rfe1 {[%emt 0:01:11]} Rfe8 {[%emt 0:00:23]} 16. Ndb5 {[%emt 0:01:54] Discovered Attack} Qb8 {[%emt 0:00:09]} 17. Nd5 {[%emt 0:00:31]} Nxd5 {[%emt 0:00:07]} 18. exd5 {[%emt 0:00:42]} Bxb2 {[%emt 0:00:54]} 19. Qb3 {[%emt 0:00:19]} (19. c3 $1 $15) 19... Bg7 {[%emt 0:00:06]} 20. Rd3 {[%emt 0:00:35]} a6 {[%emt 0:00:04]} 21. Nc3 {[%emt 0:00:25]} b5 {[%emt 0:00:08]} 22. Ne4 {[%emt 0:00:42]} Qc7 {[%emt 0:00:26]} 23. Rf3 {[%emt 0:00:47]} Qc4 {[%emt 0:00:48]} (23... Rec8 $19 {has better winning chances.} 24. Qe3 Rf8) 24. Ng5 {[%emt 0:01:52]} (24. Qxc4 $17 bxc4 25. g4) 24... Qxb3 {[%emt 0:00:40]} 25. axb3 {[%emt 0:00:51]} (25. cxb3 $142 Bf6 26. Ne4) 25... Bf6 {[%emt 0:00:47]} 26. Ne4 {[%emt 0:00:07]} Be5 {[%emt 0:00:05]} 27. Ng5 {[%emt 0:00:14]} h5 $2 {[%emt 0:00:50]} (27... f6 $19 28. Ne6 Rec8) 28. h4 $2 {[%emt 0:01:23]} (28. Nxf7 $11 Bb2 29. Re6) 28... Bf6 {[%emt 0:00:06]} 29. g3 {[%emt 0:00:24]} Bxg5 {[%emt 0:00:11]} (29... Rec8 $19 30. Re2 a5) 30. hxg5 {[%emt 0:00:02]} Rac8 {[%emt 0:00:02]} 31. Rc1 {[%emt 0:00:36]} Rc5 {[%emt 0:00:12]} 32. Rd3 {[%emt 0:00:17]} Rec8 {[%emt 0:00:05]} 33. c3 {[%emt 0:00:13]} a5 {[%emt 0:01:09]} 34. f3 {[%emt 0:00:36]} b4 {[%emt 0:00:06]} 35. c4 {[%emt 0:00:07]} a4 {[%emt 0:00:06]} 36. bxa4 {[%emt 0:00:34]} Rxc4 {[%emt 0:00:04]} 37. Re1 {[%emt 0:00:24]} Rc3 {[%emt 0:00:33]} 38. Rde3 {[%emt 0:00:20]} b3 {[%emt 0:01:15]} 39. Rxc3 {[%emt 0:01:05]} Rxc3 {[%emt 0:00:08]} 40. Rb1 $2 {[%emt 0:00:20]} (40. Kf2 Rc2+ 41. Ke3) 40... Kf8 {[%emt 0:01:29]} 41. a5 {[%emt 0:00:06]} Rc5 {[%emt 0:00:47]} (41... Rxf3 $19 42. Kg2 Rd3) 42. a6 {[%emt 0:00:11]} Ra5 {[%emt 0:00:06]} 43. Rxb3 {[%emt 0:00:10]} Rxa6 {[%emt 0:00:01]} 44. Rb8+ {[%emt 0:00:04]} Kg7 {[%emt 0:00:07]} 45. Rb7 $1 {[%emt 0:00:05]} Ra5 {[%emt 0:00:07]} 46. Rxe7 {[%emt 0:00:04]} Rxd5 {[%emt 0:00:03]} 47. Rd7 $2 {[%emt 0:00:13]} ({Only move:} 47. f4 $15) 47... Rxg5 {[%emt 0:00:21]} 48. Rxd6 {[%emt 0:00:05]} Rxg3+ {[%emt 0:00:04]} 49. Kf2 {[%emt 0:00:02]} h4 {[%emt 0:00:08]} 50. Rd4 {[%emt 0:00:03] [#]} g5 $1 {[%emt 0:00:04]} 51. Rd5 {[%emt 0:00:35]} f6 {[%emt 0:00:12]} 52. Rd7+ {[%emt 0:00:18]} Kg6 {[%emt 0:00:03]} 53. Rd5 {[%emt 0:00:02]} Rh3 {[%emt 0:00:06]} 54. Kg2 {[%emt 0:00:04]} Rg3+ {[%emt 0:00:03]} 55. Kf2 {[%emt 0:00:02]} f5 {[%emt 0:00:03]} 56. Rd6+ {[%emt 0:00:13]} Kf7 {[%emt 0:00:26]} 57. Rh6 {[%emt 0:00:14]} Kg7 {[%emt 0:00:19]} 58. Rd6 $2 {[%emt 0:00:06]} (58. Ra6) 58... g4 {[%emt 0:00:13]} 59. fxg4 {[%emt 0:00:26]} fxg4 {[%emt 0:00:03]} 60. Rc6 {[%emt 0:00:30]} Rf3+ {[%emt 0:00:18]} 61. Kg2 {[%emt 0:00:10]} Rf6 {[%emt 0:00:04]} 62. Rc4 {[%emt 0:00:06]} Rg6 {[%emt 0:00:03]} 63. Rc5 {[%emt 0:00:23]} Kh6 {[%emt 0:00:19]} 64. Kh2 {[%emt 0:00:17]} Rg5 {[%emt 0:00:08]} 65. Rc6+ {[%emt 0:00:04]} Kh5 {[%emt 0:00:03]} 66. Rc3 {[%emt 0:00:07]} g3+ {[%emt 0:00:12]} 67. Kg2 {[%emt 0:00:10]} Rf5 {[%emt 0:00:11]} 68. Rc2 {[%emt 0:00:13]} Kg4 {[%emt 0:00:06]} 69. Rc4+ {[%emt 0:00:12]} Rf4 {[%emt 0:00:04]} 70. Rc2 {[%emt 0:00:07]} h3+ {[%emt 0:00:05]} 71. Kg1 {[%emt 0:00:06]} h2+ {[%emt 0:00:49]} 72. Kg2 {[%emt 0:00:05] [#]} Rf2+ {[%emt 0:00:35] Promotion} 73. Rxf2 {[%emt 0:00:07]} gxf2 {[%emt 0:00:03]} 74. Kxh2 {[%emt 0:00:03]} Kf3 {[%emt 0:00:03]} 75. Kh3 {[%emt 0:00:05]} f1=Q+ {[%emt 0:00:03]} 76. Kh4 {[%emt 0:00:01]} Qg2 {[%emt 0:00:03]} 77. Kh5 {[%emt 0:00:02]} Qg4+ {[%emt 0:00:03]} 78. Kh6 {[%emt 0:00:02]} Kf4 {[%emt 0:00:02]} 79. Kh7 {[%emt 0:00:02]} Kf5 {[%emt 0:00:02]} 80. Kh8 {[%emt 0:00:03]} Qg5 {[%emt 0:00:04]} 81. Kh7 {[%emt 0:00:05]} Kf6 {[%emt 0:00:03]} 82. Kh8 {[%emt 0:00:03]} Kf7 {[%emt 0:00:09]} 83. Kh7 {[%emt 0:00:02]} Qg7# {[%emt 0:00:03]} 0-1

[Event "Gaprindashvili Cup Women I Stage 2020"]
[Site "Online"]
[Date "2020.11.04"]
[Round "5.5"]
[White "Zarkua, Anastasia"]
[Black "Antia, Sopia"]
[Result "1/2-1/2"]
[ECO "E01"]
[WhiteElo "1124"]
[BlackElo "1594"]
[Annotator "NA RC"]
[PlyCount "95"]
[EventDate "2020.11.04"]
[EventType "swiss"]
[SourceTitle "playchess.com"]
[Source "ChessBase"]
[SourceQuality "1"]
[TimeControl "1500+5"]

1. Nf3 {[%emt 0:00:02]} d5 {[%emt 0:00:14]} 2. d4 {[%emt 0:00:04]} Nf6 {[%emt 0:00:14]} 3. c4 {[%emt 0:00:04]} e6 {[%emt 0:00:09]} 4. g3 {[%emt 0:00:04]} c6 {[%emt 0:00:06]} 5. Qc2 {[%emt 0:00:18]} Bd6 {[%emt 0:00:09]} 6. Bg2 {[%emt 0:00:04]} Nbd7 {[%emt 0:00:08]} 7. O-O {[%emt 0:00:05]} e5 {[%emt 0:00:56]} 8. dxe5 {[%emt 0:00:51]} Nxe5 {[%emt 0:00:04]} 9. Nxe5 {[%emt 0:00:05]} Bxe5 {[%emt 0:00:03]} 10. cxd5 {[%emt 0:00:04]} cxd5 {[%emt 0:00:08]} 11. Rd1 {[%emt 0:00:05]} O-O {[%emt 0:00:26]} 12. Be3 {[%emt 0:00:21]} Be6 {[%emt 0:00:29]} 13. Qd2 {[%emt 0:01:41]} Ne4 {[%emt 0:00:53]} 14. Qb4 {[%emt 0:01:29]} Qf6 {[%emt 0:01:56]} 15. Bd4 {[%emt 0:01:16]} a5 {[%emt 0:00:56]} 16. Qb6 {[%emt 0:01:07]} Bxd4 {[%emt 0:02:57]} 17. Qxd4 {[%emt 0:00:05]} Qxd4 {[%emt 0:00:04]} 18. Rxd4 {[%emt 0:00:03]} Rac8 {[%emt 0:00:10]} 19. Nd2 {[%emt 0:01:25]} Nf6 {[%emt 0:01:10]} 20. Rd1 {[%emt 0:01:31]} Rc2 {[%emt 0:00:31]} 21. Rb1 {[%emt 0:00:39]} Rfc8 {[%emt 0:01:09]} 22. b4 {[%emt 0:01:38]} a4 {[%emt 0:01:23]} 23. a3 {[%emt 0:00:19]} Ra2 {[%emt 0:00:51]} 24. e4 {[%emt 0:00:27]} dxe4 {[%emt 0:01:51]} 25. Nxe4 {[%emt 0:00:06]} Nxe4 {[%emt 0:00:47]} 26. Bxe4 {[%emt 0:00:05]} g6 {[%emt 0:01:24]} 27. Bxb7 {[%emt 0:00:42]} Rb8 {[%emt 0:00:41]} 28. Bd5 {[%emt 0:00:14]} Bxd5 {[%emt 0:00:08]} 29. Rxd5 {[%emt 0:00:04]} Rxa3 {[%emt 0:00:02]} 30. Ra5 {[%emt 0:00:06]} Rb3 {[%emt 0:00:24]} 31. Ra1 {[%emt 0:00:19]} R3xb4 {[%emt 0:01:01]} 32. R5xa4 {[%emt 0:00:07]} Rb2 {[%emt 0:00:05]} 33. Ra7 {[%emt 0:00:23]} Re8 {[%emt 0:00:22]} 34. Ra8 {[%emt 0:00:37]} Rxa8 {[%emt 0:00:09]} 35. Rxa8+ {[%emt 0:00:04]} Kg7 {[%emt 0:00:01]} 36. Ra6 {[%emt 0:00:05]} g5 {[%emt 0:00:36]} 37. h3 {[%emt 0:00:18]} h5 {[%emt 0:00:11]} 38. Kg2 {[%emt 0:00:03]} g4 {[%emt 0:00:11]} 39. h4 {[%emt 0:01:07]} f6 {[%emt 0:00:13]} 40. Ra4 {[%emt 0:00:19]} Kg6 {[%emt 0:00:05]} 41. Rf4 {[%emt 0:00:03]} Rd2 {[%emt 0:00:19]} 42. Kg1 {[%emt 0:00:10]} Rd1+ {[%emt 0:00:08]} 43. Kg2 {[%emt 0:00:03]} Rd2 {[%emt 0:00:04]} 44. Kg1 {[%emt 0:00:04]} Rd1+ {[%emt 0:00:02]} 45. Kg2 {[%emt 0:00:02]} Rd2 {[%emt 0:00:01]} 46. Kg1 {[%emt 0:00:02]} Rd1+ {[%emt 0:00:01]} 47. Kg2 {[%emt 0:00:01]} Rd2 {[%emt 0:00:02]} 48. Kf1 {[%emt 0:00:06]} 1/2-1/2

[Event "Gaprindashvili Cup Women I Stage 2020"]
[Site "Online"]
[Date "2020.11.04"]
[Round "5.7"]
[White "Mgeladze, Kesaria"]
[Black "Gvatua, Mariam"]
[Result "1-0"]
[ECO "B22"]
[WhiteElo "1380"]
[BlackElo "1343"]
[Annotator "NA RC"]
[PlyCount "79"]
[EventDate "2020.11.04"]
[EventType "swiss"]
[SourceTitle "playchess.com"]
[Source "ChessBase"]
[SourceQuality "1"]
[TimeControl "1500+5"]

1. e4 {[%emt 0:00:02]} c5 {[%emt 0:00:03]} 2. c3 {[%emt 0:00:03]} Nf6 {[%emt 0:00:02]} 3. e5 {[%emt 0:00:02]} Nd5 {[%emt 0:00:02]} 4. g3 {[%emt 0:00:01]} Nc6 {[%emt 0:00:27]} 5. Nf3 {[%emt 0:00:06]} Qc7 {[%emt 0:00:02]} 6. Qe2 {[%emt 0:00:40]} e6 {[%emt 0:00:11]} 7. Bg2 {[%emt 0:00:03]} d6 {[%emt 0:00:16]} 8. exd6 {[%emt 0:00:04]} Bxd6 {[%emt 0:00:03]} 9. O-O {[%emt 0:00:01]} O-O {[%emt 0:00:02]} 10. Na3 {[%emt 0:00:21]} a6 {[%emt 0:00:20]} 11. Nc4 {[%emt 0:01:06]} b5 {[%emt 0:00:22]} 12. Nxd6 {[%emt 0:00:07]} Qxd6 {[%emt 0:00:02]} 13. Rd1 {[%emt 0:00:35]} Bb7 {[%emt 0:00:10]} 14. d4 {[%emt 0:01:21]} c4 {[%emt 0:00:03]} 15. a4 {[%emt 0:01:13]} Na5 {[%emt 0:03:24]} 16. Ne5 {[%emt 0:02:53]} Nb3 {[%emt 0:00:31]} 17. Ra2 {[%emt 0:00:07]} f6 {[%emt 0:00:54]} 18. Nf3 {[%emt 0:00:10]} Bc6 {[%emt 0:01:57]} 19. a5 {[%emt 0:00:39]} Rfe8 {[%emt 0:00:23]} 20. Nd2 {[%emt 0:00:14]} Nxc1 {[%emt 0:02:20]} 21. Rxc1 {[%emt 0:00:04]} e5 {[%emt 0:00:01]} 22. dxe5 {[%emt 0:00:31]} Rxe5 {[%emt 0:00:33]} 23. Qf1 {[%emt 0:01:17]} Rae8 {[%emt 0:00:44]} 24. Nf3 {[%emt 0:01:29]} Rh5 {[%emt 0:00:49]} 25. Re1 {[%emt 0:00:49]} Rxe1 {[%emt 0:00:55]} 26. Qxe1 {[%emt 0:00:05]} b4 {[%emt 0:01:10]} 27. h3 {[%emt 0:00:59]} bxc3 {[%emt 0:03:00]} 28. bxc3 {[%emt 0:00:05]} Qe7 {[%emt 0:01:11]} 29. Re2 {[%emt 0:00:32]} Qc5 {[%emt 0:00:59]} 30. Re8+ {[%emt 0:01:15]} Kf7 {[%emt 0:00:44]} 31. Qe6+ {[%emt 0:00:30]} Kg6 {[%emt 0:00:11]} 32. Ne5+ {[%emt 0:00:06]} Rxe5 {[%emt 0:00:20]} 33. Qg4+ {[%emt 0:00:21]} Kf7 {[%emt 0:00:43]} 34. Rxe5 {[%emt 0:00:17]} fxe5 {[%emt 0:00:03]} 35. Qh5+ {[%emt 0:00:13]} Kg8 {[%emt 0:00:42]} 36. Qxe5 {[%emt 0:00:17]} Qe7 {[%emt 0:00:18]} 37. Bxd5+ {[%emt 0:00:08]} Bxd5 {[%emt 0:00:03]} 38. Qxe7 {[%emt 0:00:04]} Bf7 {[%emt 0:00:09]} 39. Qd8+ {[%emt 0:00:02]} Be8 {[%emt 0:00:03]} 40. Qxe8# {[%emt 0:00:01]} 1-0

[Event "Gaprindashvili Cup Women I Stage 2020"]
[Site "Online"]
[Date "2020.11.04"]
[Round "5.8"]
[White "Didbaridze, Meri"]
[Black "Sichinava, Mariam"]
[Result "1-0"]
[ECO "D02"]
[WhiteElo "1264"]
[BlackElo "1516"]
[Annotator "NA RC"]
[PlyCount "135"]
[EventDate "2020.11.04"]
[EventType "swiss"]
[SourceTitle "playchess.com"]
[Source "ChessBase"]
[SourceQuality "1"]
[TimeControl "1500+5"]

1. d4 {[%emt 0:00:12]} Nf6 {[%emt 0:00:05]} 2. Bf4 {[%emt 0:00:09]} d5 {[%emt 0:00:02]} 3. e3 {[%emt 0:00:05]} c5 {[%emt 0:00:02]} 4. c3 {[%emt 0:00:08]} e6 {[%emt 0:00:04]} 5. Nf3 {[%emt 0:00:07]} Be7 {[%emt 0:00:02]} 6. h3 {[%emt 0:00:06]} Nc6 {[%emt 0:00:04]} 7. Nbd2 {[%emt 0:00:48]} O-O {[%emt 0:00:06]} 8. Bd3 {[%emt 0:00:09]} b6 {[%emt 0:00:06]} 9. O-O {[%emt 0:00:09]} Bb7 {[%emt 0:00:03]} 10. Ne5 {[%emt 0:00:18]} Nxe5 {[%emt 0:02:47]} 11. Bxe5 {[%emt 0:00:07]} Bd6 {[%emt 0:00:02]} 12. Nf3 {[%emt 0:00:08]} Qc7 {[%emt 0:00:28]} 13. Bxd6 {[%emt 0:00:17]} Qxd6 {[%emt 0:00:04]} 14. Ne5 {[%emt 0:00:02]} Rac8 {[%emt 0:00:47]} 15. Re1 {[%emt 0:00:22]} Rfd8 {[%emt 0:00:34]} 16. Qf3 {[%emt 0:01:44]} Qe7 {[%emt 0:01:00]} 17. Rad1 {[%emt 0:02:15]} Nd7 {[%emt 0:01:53]} 18. Nxd7 {[%emt 0:00:18]} Rxd7 {[%emt 0:00:09]} 19. Qh5 {[%emt 0:00:13]} h6 {[%emt 0:00:10]} 20. Rc1 {[%emt 0:05:40]} Rdc7 {[%emt 0:00:28]} 21. f4 {[%emt 0:00:42]} Qf6 {[%emt 0:01:03]} 22. Rf1 {[%emt 0:01:36]} Qe7 {[%emt 0:03:07]} 23. Rce1 {[%emt 0:00:36]} f5 {[%emt 0:03:04]} 24. Qg6 {[%emt 0:00:46]} Bc6 {[%emt 0:00:12]} 25. Qg3 {[%emt 0:00:43]} Qf6 {[%emt 0:01:33]} 26. a3 {[%emt 0:02:37]} a5 {[%emt 0:01:04]} 27. Rc1 {[%emt 0:00:53]} Be8 {[%emt 0:01:41]} 28. Qf2 {[%emt 0:00:32]} b5 {[%emt 0:01:52]} 29. Qd2 {[%emt 0:00:15]} c4 {[%emt 0:00:50]} 30. Be2 {[%emt 0:00:16]} h5 {[%emt 0:01:23]} 31. Bf3 {[%emt 0:02:01]} g5 {[%emt 0:00:18]} 32. g3 {[%emt 0:00:26]} Rg7 {[%emt 0:00:19]} 33. Kh2 {[%emt 0:00:23]} gxf4 {[%emt 0:00:48]} 34. exf4 {[%emt 0:00:08]} h4 {[%emt 0:00:13]} 35. Rg1 {[%emt 0:00:54]} Rcc7 {[%emt 0:00:11]} 36. Qf2 {[%emt 0:00:29]} Qh6 {[%emt 0:00:19]} 37. Be2 {[%emt 0:00:31]} Rcf7 {[%emt 0:00:54]} 38. gxh4 {[%emt 0:00:11]} Kh8 {[%emt 0:00:08]} 39. Rxg7 {[%emt 0:00:05]} Rxg7 {[%emt 0:00:03]} 40. Rg1 {[%emt 0:00:04]} Rh7 {[%emt 0:00:05]} 41. Re1 {[%emt 0:00:20]} Qf6 {[%emt 0:00:08]} 42. Bd1 {[%emt 0:00:12]} Rxh4 {[%emt 0:00:04]} 43. Bf3 {[%emt 0:00:25]} Qh6 {[%emt 0:00:06]} 44. Bg2 {[%emt 0:00:03]} Rxf4 {[%emt 0:00:03]} 45. Qe3 {[%emt 0:00:03]} Bf7 {[%emt 0:00:07]} 46. Qe5+ {[%emt 0:00:02]} Kg8 {[%emt 0:00:05]} 47. Qb8+ {[%emt 0:00:03]} Kh7 {[%emt 0:00:02]} 48. Qb7 {[%emt 0:00:07]} Qg6 {[%emt 0:00:05]} 49. Qe7 {[%emt 0:00:04]} Rf2 {[%emt 0:00:03]} 50. Qh4+ {[%emt 0:00:02]} Kg7 {[%emt 0:00:02]} 51. Qxf2 {[%emt 0:00:02]} Qh5 {[%emt 0:00:07]} 52. Rg1 {[%emt 0:00:02]} Kh7 {[%emt 0:00:03]} 53. Bf3 {[%emt 0:00:04]} Qh6 {[%emt 0:00:02]} 54. Qe2 {[%emt 0:00:06]} Qf4+ {[%emt 0:00:02]} 55. Kh1 {[%emt 0:00:04]} Qh4 {[%emt 0:00:04]} 56. Qg2 {[%emt 0:00:02]} Qh6 {[%emt 0:00:03]} 57. Be2 {[%emt 0:00:05]} Bg6 {[%emt 0:00:03]} 58. Bf1 {[%emt 0:00:02]} Bf7 {[%emt 0:00:03]} 59. Qg5 {[%emt 0:00:04]} Qxg5 {[%emt 0:00:15]} 60. Rxg5 {[%emt 0:00:02]} Kh6 {[%emt 0:00:01]} 61. Rg2 {[%emt 0:00:08]} Bh5 {[%emt 0:00:02]} 62. Kh2 {[%emt 0:00:02]} f4 {[%emt 0:00:02]} 63. Rf2 {[%emt 0:00:02]} Kg5 {[%emt 0:00:04]} 64. Be2 {[%emt 0:00:04]} Bg6 {[%emt 0:00:03]} 65. Bg4 {[%emt 0:00:07]} Be4 {[%emt 0:00:08]} 66. Bxe6 {[%emt 0:00:04]} f3 {[%emt 0:00:02]} 67. Kg3 {[%emt 0:00:03]} a4 {[%emt 0:00:07]} 68. Bd7 {[%emt 0:00:04]} 1-0